bitfinex-derivatives/quotes_BTCF0:USTF0_20240817
["timestamp","ask_amount","ask_price","bid_price","bid_amount"]
[1723885941757,0.0953,59271.0,59270.0,0.46532362]
[1723885943561,0.0953,59271.0,59270.0,0.10452362]
[1723885943764,0.0953,59271.0,59270.0,0.46532362]
[1723885944565,0.002,59271.0,59270.0,0.46532362]
[1723885944767,0.08435372,59274.0,59273.0,0.063254]
[1723885945071,0.05061097,59275.0,59273.0,0.76470762]
[1723885945278,0.00025302,59277.0,59276.0,0.06325]
[1723885945457,0.00025302,59277.0,59276.0,0.31060362]
[1723885945655,0.00025302,59277.0,59276.0,1.21672362]
[1723885947169,0.00125302,59277.0,59276.0,1.21672362]
[1723885947365,0.00225302,59277.0,59276.0,1.30066738]
[1723885948162,0.00225302,59277.0,59276.0,1.08821296]
[1723885948473,0.00225302,59277.0,59276.0,1.00650066]
[1723885948873,0.00225302,59277.0,59276.0,1.02407125]
[1723885949268,0.00225302,59277.0,59276.0,1.0167864]
[1723885949465,0.00225302,59277.0,59276.0,1.03435686]
[1723885949771,0.00225302,59277.0,59276.0,1.11830062]
[1723885949968,0.00225302,59277.0,59276.0,1.24678458]
[1723885950161,0.00225302,59277.0,59276.0,1.16284082]
[1723885950366,0.00225302,59277.0,59276.0,1.24670766]
[1723885950774,0.00225302,59277.0,59276.0,5.73830766]
[1723885951274,0.00225302,59277.0,59276.0,5.52595686]
[1723885951772,0.00225302,59277.0,59276.0,5.4888262]
[1723885951981,0.00225302,59277.0,59276.0,5.52594524]
[1723885953375,0.00225302,59277.0,59276.0,5.50837478]
[1723885953873,0.0933,59287.0,59282.0,0.063244]
[1723885954074,0.0933,59287.0,59286.0,0.3608]
[1723885954669,0.1033,59287.0,59286.0,0.3608]
[1723885954877,0.6093,59287.0,59286.0,0.3608]
[1723885955064,0.6583,59287.0,59286.0,0.3608]
[1723885955269,0.74265372,59287.0,59286.0,0.3608]
[1723885955464,0.74365372,59287.0,59286.0,0.3608]
[1723885955664,0.89365372,59287.0,59286.0,0.3608]
[1723885956077,0.89465372,59287.0,59286.0,0.3608]
[1723885957176,0.06324,59286.0,59284.0,0.3608]
[1723885957377,0.0933,59285.0,59281.0,0.00025302]
[1723885957574,0.0933,59282.0,59281.0,0.00025302]
[1723885957768,0.1233,59282.0,59281.0,0.36105302]
[1723885958977,0.1233,59282.0,59281.0,0.00025302]
[1723885959167,0.1233,59282.0,59281.0,0.00225302]
[1723885959474,0.1233,59282.0,59281.0,0.36305302]
[1723885959674,0.1243,59282.0,59281.0,0.36305302]
[1723885960279,0.1243,59282.0,59281.0,0.00225302]
[1723885960464,0.1243,59282.0,59281.0,0.36305302]
[1723885962882,0.1243,59282.0,59281.0,0.00225302]
[1723885963080,0.1243,59282.0,59281.0,0.36305302]
[1723885964976,0.1243,59282.0,59281.0,0.00225302]
[1723885965487,0.17472403,59282.0,59281.0,0.00225302]
[1723885965791,0.1243,59282.0,59281.0,0.00225302]
[1723885966785,0.0943,59282.0,59281.0,0.00225302]
[1723885971486,0.14472403,59282.0,59281.0,0.00225302]
[1723885972382,0.0943,59282.0,59281.0,0.00225302]
[1723885977986,0.22286351,59282.0,59281.0,0.00225302]
[1723885978377,0.12163905,59282.0,59281.0,0.00225302]
[1723885978579,0.22286351,59282.0,59281.0,0.00225302]
[1723885979977,0.12163905,59282.0,59281.0,0.00225302]
[1723885980781,0.12163763,59282.0,59281.0,0.00225302]
[1723885981589,0.02833763,59282.0,59281.0,0.00225302]
[1723885981790,0.12163763,59282.0,59281.0,0.00225302]
[1723885983293,0.12163763,59282.0,59281.0,0.36305302]
[1723885984187,0.22286209,59282.0,59281.0,0.36305302]
[1723885984688,0.22286266,59282.0,59281.0,0.36305302]
[1723885985091,0.0943,59282.0,59281.0,0.43010421]
[1723885989293,0.0943,59282.0,59281.0,0.10642654]
[1723885989488,0.0943,59282.0,59281.0,0.46722654]
[1723885992092,0.0943,59282.0,59281.0,0.46722656]
[1723885992292,0.0943,59282.0,59281.0,0.10642656]
[1723885992596,0.0943,59282.0,59281.0,0.46722656]
[1723885992997,0.12163796,59282.0,59281.0,0.40017537]
[1723885993186,0.22286242,59282.0,59281.0,0.40017537]
[1723885993996,0.22286246,59282.0,59281.0,0.40017537]
[1723885994202,0.22286246,59282.0,59281.0,0.40017517]
[1723885996287,0.121638,59282.0,59281.0,0.40017517]
[1723885996895,0.12163778,59282.0,59281.0,0.40017517]
[1723885998797,0.22286224,59282.0,59281.0,0.40017517]
[1723885999392,0.22286224,59282.0,59281.0,0.03937517]
[1723885999594,0.12163778,59282.0,59281.0,0.36305302]
[1723885999906,0.12163778,59282.0,59281.0,0.40017523]
[1723886000095,0.0943,59282.0,59281.0,0.40017523]
[1723886001594,0.0943,59282.0,59281.0,0.03937523]
[1723886001795,0.0943,59282.0,59281.0,0.40017523]
[1723886001993,0.0943,59282.0,59281.0,0.41774477]
[1723886002301,0.0943,59282.0,59281.0,0.40017523]
[1723886002896,0.0943,59282.0,59281.0,0.4177447]
[1723886003697,0.0943,59282.0,59281.0,0.38062249]
[1723886003906,0.0943,59282.0,59281.0,0.41774416]
[1723886004297,0.001,59282.0,59281.0,0.594911]
[1723886004495,0.05159609,59282.0,59281.0,0.76689198]
[1723886004700,0.001,59282.0,59281.0,0.76689198]
[1723886005696,0.001,59282.0,59281.0,0.76688583]
[1723886006597,0.001,59282.0,59281.0,0.40608583]
[1723886006794,0.001,59282.0,59281.0,1.12768583]
[1723886007907,0.001,59282.0,59281.0,1.1276805]
[1723886008092,0.001,59282.0,59281.0,1.0496248]
[1723886008295,0.001,59282.0,59281.0,1.03205886]
[1723886008504,0.001,59282.0,59281.0,1.04962498]
[1723886008703,0.001,59282.0,59281.0,1.03205886]
[1723886008903,0.001,59282.0,59281.0,0.98163081]
[1723886009500,0.001,59282.0,59281.0,0.91751671]
[1723886012708,0.001,59282.0,59281.0,0.19591671]
[1723886013009,0.001,59282.0,59281.0,0.55671671]
[1723886013398,0.001,59282.0,59281.0,0.19591671]
[1723886013598,0.001,59282.0,59281.0,0.55671671]
[1723886015204,0.001,59282.0,59281.0,0.64076346]
[1723886015801,0.001,59282.0,59281.0,0.24284477]
[1723886015998,0.001,59282.0,59281.0,0.64076518]
[1723886016702,0.001,59282.0,59281.0,0.70488226]
[1723886017612,0.001,59282.0,59281.0,0.34408226]
[1723886017812,0.001,59282.0,59281.0,0.70488226]
[1723886018313,0.001,59282.0,59281.0,0.62083551]
[1723886018511,0.001,59282.0,59281.0,0.63840354]
[1723886019609,0.001,59282.0,59281.0,0.27760354]
[1723886019804,0.001,59282.0,59281.0,0.63840354]
[1723886020109,0.001,59282.0,59281.0,0.63840324]
[1723886022911,0.001,59282.0,59281.0,0.27760324]
[1723886023114,0.001,59282.0,59281.0,0.68883468]
[1723886024017,0.001,59282.0,59281.0,0.32803468]
[1723886024219,0.001,59282.0,59281.0,0.68883468]
[1723886024612,0.001,59282.0,59281.0,0.57428616]
[1723886025214,0.001,59282.0,59281.0,0.6247176]
[1723886026022,0.001,59282.0,59281.0,0.2639176]
[1723886026223,0.001,59282.0,59281.0,0.57428616]
[1723886027123,0.001,59282.0,59281.0,0.57428589]
[1723886028017,0.001,59282.0,59281.0,0.60715685]
[1723886028209,0.001,59282.0,59281.0,0.62472429]
[1723886028615,0.001,59282.0,59281.0,0.67127369]
[1723886028822,0.001,59282.0,59281.0,0.68884115]
[1723886030232,0.001,59282.0,59281.0,0.74932207]
[1723886030414,0.001,59282.0,59281.0,0.76688943]
[1723886030820,0.001,59282.0,59281.0,0.7668888]
[1723886033814,0.001,59282.0,59281.0,0.4060888]
[1723886034226,0.001,59282.0,59281.0,0.7668888]
[1723886034929,0.001,59282.0,59281.0,0.4060888]
[1723886035226,0.001,59282.0,59281.0,0.7668888]
[1723886035521,0.001,59282.0,59281.0,0.76688871]
[1723886036528,0.001,59282.0,59281.0,0.76688881]
[1723886036823,0.001,59282.0,59281.0,0.8677254]
[1723886037223,0.001,59282.0,59281.0,0.76688881]
[1723886038029,0.001,59282.0,59281.0,0.40608881]
[1723886038223,0.001,59282.0,59281.0,1.12768881]
[1723886039822,0.001,59282.0,59281.0,1.26681306]
[1723886040213,0.001,59282.0,59281.0,1.26683485]
[1723886040424,0.001,59282.0,59281.0,1.26683011]
[1723886041029,0.001,59282.0,59281.0,0.54523011]
[1723886041229,0.001,59282.0,59281.0,1.26683011]
[1723886043324,0.001,59282.0,59281.0,1.14803014]
[1723886043626,0.001,59282.0,59281.0,1.26682707]
[1723886043827,0.001,59282.0,59281.0,0.54522707]
[1723886044130,0.001,59282.0,59281.0,1.26682707]
[1723886045136,0.001,59282.0,59281.0,0.99919495]
[1723886047632,0.001,59282.0,59281.0,0.99919494]
[1723886052135,0.001,59282.0,59281.0,0.2775952]
[1723886052336,0.001,59282.0,59281.0,0.9991952]
[1723886052531,0.001,59282.0,59281.0,0.88039802]
[1723886052737,0.001,59282.0,59281.0,0.9991952]
[1723886053038,0.001,59282.0,59281.0,0.2775952]
[1723886053236,0.001,59282.0,59281.0,1.12767537]
[1723886054031,0.001,59282.0,59281.0,0.40607537]
[1723886054435,0.001,59282.0,59281.0,1.12767537]
[1723886055035,0.001,59282.0,59281.0,0.40607537]
[1723886055238,0.001,59282.0,59281.0,1.12767537]
[1723886056030,0.001,59282.0,59281.0,0.40607537]
[1723886056229,0.001,59282.0,59281.0,1.00887819]
[1723886056536,0.001,59282.0,59281.0,1.12767563]
[1723886057134,0.001,59282.0,59281.0,0.4060759]
[1723886057437,0.001,59282.0,59281.0,1.1276759]
[1723886058149,0.001,59282.0,59281.0,0.4060759]
[1723886058336,0.001,59282.0,59281.0,1.1276759]
[1723886058836,0.001,59282.0,59281.0,0.4060759]
[1723886059046,0.001,59282.0,59281.0,1.1276759]
[1723886059247,0.001,59282.0,59281.0,0.4060759]
[1723886059540,0.001,59282.0,59281.0,1.1276759]
[1723886059742,0.001,59282.0,59281.0,1.22856488]
[1723886060141,0.001,59282.0,59281.0,1.1276759]
[1723886060339,0.001,59282.0,59281.0,1.2285654]
[1723886061334,0.001,59282.0,59281.0,1.1352654]
[1723886061534,0.001,59282.0,59281.0,1.2285654]
[1723886061736,0.001,59282.0,59281.0,1.22856607]
[1723886064450,0.001,59282.0,59281.0,1.10976811]
[1723886064653,0.001,59282.0,59281.0,1.22856641]
[1723886065049,0.001,59282.0,59281.0,1.12733376]
[1723886065239,0.001,59282.0,59281.0,0.50696641]
[1723886065444,0.001,59282.0,59281.0,1.22856641]
[1723886066448,0.001,59282.0,59281.0,1.22856642]
[1723886066648,0.001,59282.0,59281.0,0.50696642]
[1723886066856,0.001,59282.0,59281.0,1.22856642]
[1723886068461,0.001,59282.0,59281.0,0.99919632]
[1723886071059,0.001,59282.0,59281.0,0.97318503]
[1723886071361,0.26876846,59282.0,59281.0,0.10348567]
[1723886071560,0.2961053,59282.0,59281.0,0.10349261]
[1723886071751,0.2961053,59282.0,59281.0,0.03937166]
[1723886071752,0.19488084,59282.0,59281.0,0.03937166]
[1723886072354,0.29603507,59282.0,59281.0,0.03937166]
[1723886073262,0.20502906,59282.0,59281.0,0.03937166]
[1723886074155,0.30618483,59282.0,59281.0,0.03937166]
[1723886074356,0.20502906,59282.0,59281.0,0.03937166]
[1723886074866,1.3215945,59282.0,59271.0,0.0101258]
[1723886075065,0.0933,59272.0,59266.0,0.05046687]
[1723886075363,0.06743037,59269.0,59268.0,0.06728871]
[1723886075563,0.0459,59271.0,59268.0,0.08754744]
[1723886075564,0.1375,59271.0,59268.0,0.08754744]
[1723886075758,0.27493037,59271.0,59267.0,0.0504162]
[1723886076271,0.33818637,59271.0,59267.0,0.0504162]
[1723886076566,0.33818637,59271.0,59266.0,0.0504162]
[1723886076567,0.05048247,59269.0,59266.0,0.0504162]
[1723886076761,0.0933,59267.0,59266.0,0.0504162]
[1723886076967,0.0933,59267.0,59266.0,0.08754913]
[1723886077261,0.0933,59267.0,59265.0,0.0504162]
[1723886077454,0.0933,59267.0,59264.0,0.41146922]
[1723886078565,0.0953,59267.0,59264.0,0.36105302]
[1723886079154,0.0943,59267.0,59264.0,0.36105302]
[1723886079355,0.0953,59267.0,59264.0,0.36105302]
[1723886079754,0.0953,59267.0,59265.0,0.0933]
[1723886080564,0.0953,59267.0,59264.0,0.36105302]
[1723886081469,0.0943,59267.0,59264.0,0.36105302]
[1723886081959,0.0953,59267.0,59264.0,0.36105302]
[1723886082563,0.0943,59267.0,59264.0,0.36105302]
[1723886082862,0.0953,59267.0,59264.0,0.36105302]
[1723886084964,0.0953,59267.0,59264.0,0.00025302]
[1723886088273,0.0953,59267.0,59265.0,3.77]
[1723886088875,0.002,59267.0,59265.0,3.77]
[1723886089076,0.0953,59267.0,59265.0,3.77]
[1723886090676,0.0953,59267.0,59264.0,0.36105302]
[1723886091267,0.0953,59267.0,59264.0,0.00025302]
[1723886091663,0.0943,59267.0,59264.0,0.36105302]
[1723886091865,0.0953,59267.0,59264.0,0.36105302]
[1723886092967,0.0953,59267.0,59264.0,0.00025302]
[1723886093277,0.0953,59267.0,59264.0,0.36105302]
[1723886093970,0.0953,59267.0,59264.0,0.00025302]
[1723886094583,0.0953,59267.0,59264.0,0.36105302]
[1723886096065,0.0953,59267.0,59264.0,0.00025302]
[1723886096271,0.1253,59267.0,59264.0,0.36105302]
[1723886096974,0.1253,59267.0,59264.0,0.00025302]
[1723886097172,0.1253,59267.0,59264.0,0.36105302]
[1723886099080,0.1253,59267.0,59264.0,0.00025302]
[1723886099375,0.1253,59267.0,59264.0,0.41146922]
[1723886099970,0.0933,59265.0,59264.0,0.41146922]
[1723886100182,0.1233,59265.0,59264.0,0.41146922]
[1723886100386,0.1233,59265.0,59264.0,0.36105302]
[1723886100979,0.0933,59265.0,59264.0,0.36105302]
[1723886101279,0.0933,59265.0,59264.0,0.42834173]
[1723886101484,0.0943,59265.0,59264.0,0.00025302]
[1723886101684,0.0943,59265.0,59264.0,0.36105302]
[1723886101882,0.1053,59265.0,59264.0,0.36105302]
[1723886104186,0.0953,59265.0,59264.0,0.36105302]
[1723886104586,0.0953,59265.0,59264.0,0.48958292]
[1723886105880,0.0953,59265.0,59264.0,0.48958457]
[1723886106078,0.0953,59265.0,59264.0,0.12878457]
[1723886106693,0.0953,59265.0,59264.0,0.12878511]
[1723886106882,0.1253,59265.0,59264.0,0.12878511]
[1723886107282,0.1253,59265.0,59264.0,0.21300096]
[1723886107483,0.1253,59265.0,59264.0,0.21299975]
[1723886107682,0.1253,59265.0,59264.0,0.12878511]
[1723886107886,0.0953,59265.0,59264.0,0.12878511]
[1723886108083,0.0953,59265.0,59264.0,0.21299968]
[1723886108283,0.002,59265.0,59264.0,0.21299968]
[1723886108486,0.002,59265.0,59264.0,0.12878511]
[1723886110097,0.002,59265.0,59264.0,0.48958511]
[1723886111097,0.002,59265.0,59264.0,0.12878511]
[1723886111288,0.002,59265.0,59264.0,0.48958511]
[1723886111588,0.002,59265.0,59264.0,0.12878511]
[1723886111795,0.002,59265.0,59264.0,0.48958511]
[1723886114088,0.002,59265.0,59264.0,0.36105302]
[1723886115702,0.01243425,59265.0,59264.0,0.36105302]
[1723886115888,0.002,59265.0,59264.0,0.36105302]
[1723886116498,0.002,59265.0,59264.0,0.39818743]
[1723886117798,0.01220281,59265.0,59264.0,0.39818743]
[1723886119489,0.02220281,59265.0,59264.0,0.39818743]
[1723886119993,0.02220281,59265.0,59264.0,0.03738743]
[1723886120390,0.02220281,59265.0,59264.0,0.05497107]
[1723886123197,0.002,59265.0,59264.0,0.05497107]
[1723886123502,0.06947093,59265.0,59264.0,0.05497107]
[1723886124004,0.06947093,59265.0,59264.0,0.03738743]
[1723886124298,0.002,59265.0,59264.0,0.03738743]
[1723886124993,0.001,59265.0,59264.0,0.03738743]
[1723886125195,0.002,59265.0,59264.0,0.03738743]
[1723886126201,0.002,59265.0,59264.0,0.10065043]
[1723886126395,0.002,59265.0,59264.0,0.16478987]
[1723886127204,0.002,59265.0,59264.0,0.52558987]
[1723886127392,0.002,59265.0,59264.0,0.52558882]
[1723886127998,0.002,59265.0,59264.0,0.42431602]
[1723886128199,0.002,59265.0,59264.0,0.52558853]
[1723886131308,0.002,59265.0,59264.0,0.16478853]
[1723886131607,0.002,59265.0,59264.0,0.52558853]
[1723886131812,0.002,59265.0,59264.0,0.42431602]
[1723886132105,0.002,59265.0,59264.0,0.52558787]
[1723886132402,0.002,59265.0,59264.0,0.57408787]
[1723886134102,0.002,59265.0,59264.0,0.21328787]
[1723886134404,0.002,59265.0,59264.0,0.57408787]
[1723886135206,0.002,59265.0,59264.0,0.21328787]
[1723886135502,0.002,59265.0,59264.0,0.57408787]
[1723886136607,0.002,59265.0,59264.0,0.78683231]
[1723886137111,0.002,59265.0,59264.0,0.80441521]
[1723886137302,0.002,59265.0,59264.0,0.67588489]
[1723886137896,0.05260892,59265.0,59264.0,0.78683176]
[1723886138096,0.05260892,59265.0,59264.0,0.88013176]
[1723886140206,0.05260892,59265.0,59264.0,0.51933176]
[1723886140398,0.002,59265.0,59264.0,0.89771442]
[1723886140807,0.002,59265.0,59264.0,0.88013116]
[1723886141002,0.002,59265.0,59264.0,0.80441442]
[1723886142405,0.002,59265.0,59264.0,0.80441422]
[1723886143310,0.002,59265.0,59264.0,0.75591422]
[1723886144606,0.002,59265.0,59264.0,0.75591454]
[1723886144808,0.05260814,59265.0,59264.0,0.75588548]
[1723886145011,0.002,59265.0,59264.0,0.75588548]
[1723886145210,0.002,59265.0,59264.0,0.75588432]
[1723886145407,0.002,59265.0,59264.0,0.62735537]
[1723886145612,0.07947093,59265.0,59264.0,0.39818581]
[1723886148317,0.07947093,59265.0,59264.0,0.03738581]
[1723886153023,0.07947093,59265.0,59264.0,0.03738696]
[1723886155015,0.07947093,59265.0,59264.0,0.10475547]
[1723886155016,0.012,59265.0,59264.0,0.10475547]
[1723886159014,0.012,59265.0,59264.0,0.10474378]
[1723886162233,0.1053,59265.0,59264.0,0.10474378]
[1723886162934,0.0953,59265.0,59264.0,0.10474378]
[1723886163435,0.0953,59265.0,59264.0,0.06760984]
[1723886163731,0.0953,59265.0,59264.0,0.10474407]
[1723886164418,0.0953,59265.0,59264.0,0.03738725]
[1723886164823,0.0953,59265.0,59264.0,0.05497732]
[1723886166229,0.1627662,59265.0,59264.0,0.05497732]
[1723886167535,0.1627662,59265.0,59264.0,0.05497694]
[1723886175638,0.16278978,59265.0,59264.0,0.05497694]
[1723886175834,0.0953,59265.0,59264.0,0.05497502]
[1723886176033,0.002,59265.0,59264.0,0.33183004]
[1723886176239,0.002,59265.0,59264.0,0.30907132]
[1723886176436,0.05260946,59265.0,59264.0,0.43704351]
[1723886177037,0.05260946,59265.0,59264.0,0.79784351]
[1723886177432,0.05260946,59265.0,59264.0,0.79783578]
[1723886178643,0.002,59265.0,59264.0,0.79783578]
[1723886179340,0.002,59265.0,59264.0,0.7978356]
[1723886179341,0.05060034,59265.0,59264.0,0.7978356]
[1723886179553,0.08453982,59275.0,59264.0,1.84548116]
[1723886179554,0.05060034,59273.0,59264.0,1.84548116]
[1723886179844,0.00025302,59275.0,59273.0,0.063254]
[1723886180040,0.00025302,59275.0,59274.0,0.60816011]
[1723886180240,0.00025302,59275.0,59274.0,0.70911268]
[1723886180434,0.00025302,59275.0,59274.0,0.60816011]
[1723886181243,0.00125302,59275.0,59274.0,1.49669331]
[1723886181444,0.00125302,59275.0,59274.0,1.51427039]
[1723886181630,0.05060034,59287.0,59274.0,1.61522296]
[1723886181833,0.05060034,59287.0,59286.0,0.3608]
[1723886182041,0.14390034,59288.0,59286.0,0.39792406]
[1723886182236,0.14390034,59288.0,59286.0,0.3608]
[1723886182434,0.0933,59288.0,59286.0,0.3608]
[1723886183941,0.001,59287.0,59286.0,0.3608]
[1723886184645,0.1003,59288.0,59286.0,0.3608]
[1723886185040,0.0973,59288.0,59286.0,0.3608]
[1723886185344,0.007,59287.0,59286.0,0.3608]
[1723886185737,0.004,59287.0,59286.0,0.3608]
[1723886186737,0.004,59287.0,59285.0,0.3608]
[1723886186938,0.0933,59286.0,59285.0,0.3608]
[1723886187941,0.0933,59286.0,59283.0,0.047]
[1723886188135,0.0933,59286.0,59285.0,0.3608]
[1723886188338,0.0963,59286.0,59285.0,0.3608]
[1723886189039,0.0933,59286.0,59285.0,0.3608]
[1723886189239,0.0943,59286.0,59285.0,0.3608]
[1723886189949,0.1043,59286.0,59285.0,0.3608]
[1723886190148,0.1043,59286.0,59283.0,0.047]
[1723886190539,0.1063,59286.0,59283.0,0.047]
[1723886190744,0.1053,59286.0,59285.0,0.3608]
[1723886190938,0.1083,59286.0,59285.0,0.3608]
[1723886191849,0.1043,59286.0,59285.0,0.3608]
[1723886192453,0.1063,59286.0,59285.0,0.3608]
[1723886193046,0.1063,59286.0,59282.0,0.00999511]
[1723886193248,0.1063,59286.0,59281.0,0.06349802]
[1723886193249,0.1083,59286.0,59285.0,0.3608]
[1723886194053,0.1053,59286.0,59285.0,0.3608]
[1723886195158,0.1083,59286.0,59285.0,0.3608]
[1723886196355,0.1083,59286.0,59281.0,0.07369251]
[1723886196551,0.1083,59286.0,59285.0,0.3608]
[1723886197561,0.1053,59286.0,59285.0,0.3608]
[1723886198059,0.0953,59286.0,59285.0,0.3608]
[1723886198457,0.0983,59286.0,59285.0,0.3608]
[1723886198953,0.0983,59286.0,59282.0,0.110844]
[1723886199352,0.0983,59286.0,59285.0,0.3608]
[1723886200355,0.0953,59286.0,59285.0,0.3608]
[1723886200955,0.0933,59286.0,59285.0,0.3608]
[1723886201561,0.0953,59286.0,59285.0,0.3608]
[1723886201763,0.0983,59286.0,59285.0,0.3608]
[1723886202860,0.78434,59286.0,59285.0,0.3608]
[1723886203060,0.79430003,59286.0,59285.0,0.3608]
[1723886204561,0.34154,59286.0,59281.0,0.00025302]
[1723886204764,0.0933,59282.0,59281.0,0.00025302]
[1723886205564,0.0933,59282.0,59281.0,0.05063728]
[1723886206155,0.0933,59282.0,59281.0,0.41143728]
[1723886206558,0.0933,59282.0,59281.0,0.36105302]
[1723886207783,0.0933,59282.0,59281.0,0.42823203]
[1723886208080,0.0933,59282.0,59281.0,0.06743203]
[1723886208280,0.00025302,59293.0,59289.0,0.063236]
[1723886208281,0.05036552,59291.0,59289.0,0.063236]
[1723886208467,0.00025302,59293.0,59289.0,0.063236]
[1723886208468,0.05036552,59292.0,59290.0,0.660435]
[1723886208676,0.00025302,59293.0,59291.0,0.063234]
[1723886209584,0.007,59292.0,59291.0,0.063234]
[1723886210187,0.00825302,59293.0,59291.0,0.063234]
[1723886210693,0.008,59292.0,59291.0,0.063234]
[1723886210987,0.008,59292.0,59291.0,0.2756344]
[1723886211372,0.008,59292.0,59291.0,0.19169758]
[1723886211681,0.008,59292.0,59291.0,0.27563675]
[1723886212185,0.017,59292.0,59291.0,0.27563675]
[1723886212483,0.009,59292.0,59291.0,0.063234]
[1723886212985,0.017,59292.0,59291.0,0.063234]
[1723886214177,0.017,59292.0,59291.0,0.07347973]
[1723886217482,0.017,59292.0,59291.0,0.79507973]
[1723886222087,0.017,59292.0,59291.0,1.8220902]
[1723886222284,0.017,59292.0,59291.0,1.4220902]
[1723886222489,0.017,59292.0,59291.0,1.95054143]
[1723886222873,0.017,59292.0,59291.0,1.88415446]
[1723886223075,0.00025302,59293.0,59291.0,1.88415187]
[1723886223283,0.00025302,59293.0,59292.0,0.68907214]
[1723886223487,0.00025302,59293.0,59292.0,4.62411488]
[1723886223684,0.00025302,59293.0,59292.0,5.02411488]
[1723886223885,0.00025302,59293.0,59292.0,4.92316231]
[1723886224389,0.00925302,59293.0,59292.0,5.02361851]
[1723886225279,0.01825302,59293.0,59292.0,4.9231609]
[1723886225682,0.01825302,59293.0,59292.0,5.74521851]
[1723886225878,0.01825302,59293.0,59292.0,5.51630967]
[1723886226078,0.00925302,59293.0,59292.0,5.56651027]
[1723886226278,0.01925302,59293.0,59292.0,5.51730967]
[1723886226679,0.01925302,59293.0,59292.0,5.39856]
[1723886226881,0.01925302,59293.0,59292.0,5.51729889]
[1723886227176,0.01925302,59293.0,59292.0,5.56748764]
[1723886227378,0.01925302,59293.0,59292.0,5.51729888]
[1723886228290,0.01925302,59293.0,59292.0,5.58053188]
[1723886228479,0.01925302,59293.0,59292.0,5.18053188]
[1723886228995,0.01925302,59293.0,59292.0,5.18053685]
[1723886231189,0.01925302,59293.0,59292.0,5.1164463]
[1723886232191,0.01925302,59293.0,59292.0,4.3948463]
[1723886232390,0.01925302,59293.0,59292.0,5.1164463]
[1723886232591,0.01925302,59293.0,59292.0,4.3948463]
[1723886232782,0.01925302,59293.0,59292.0,4.37729806]
[1723886232983,0.0933,59305.0,59302.0,0.063222]
[1723886233185,0.1133,59305.0,59304.0,0.7216]
[1723886233493,0.0933,59305.0,59304.0,0.7216]
[1723886233790,0.0933,59305.0,59303.0,0.063221]
[1723886233990,0.0933,59305.0,59304.0,0.7216]
[1723886234191,0.1073,59305.0,59304.0,0.7216]
[1723886235184,0.1073,59305.0,59304.0,0.001]
[1723886235185,0.1213,59305.0,59304.0,0.001]
[1723886235491,0.1213,59305.0,59304.0,0.7727889]
[1723886235997,0.028,59305.0,59304.0,0.7727889]
[1723886236287,0.028,59305.0,59304.0,0.7226]
[1723886236288,0.1483,59305.0,59304.0,0.7226]
[1723886236492,1.20418,59305.0,59304.0,0.001]
[1723886236686,1.05418,59305.0,59304.0,0.001]
[1723886236881,1.04318,59305.0,59304.0,0.001]
[1723886237182,1.04518,59305.0,59304.0,0.002]
[1723886237487,1.05530595,59305.0,59304.0,0.002]
[1723886238289,1.05530595,59305.0,59298.0,0.00025302]
[1723886238596,0.0933,59299.0,59298.0,0.00025302]
[1723886238889,0.1033,59299.0,59298.0,0.00025302]
[1723886239080,0.1033,59299.0,59298.0,0.36105302]
[1723886239785,0.1173,59299.0,59298.0,0.36305302]
[1723886240390,0.1283,59299.0,59298.0,0.36305302]
[1723886242186,0.13854625,59299.0,59298.0,0.36305302]
[1723886242489,0.13854625,59299.0,59298.0,0.00225302]
[1723886242692,0.13854625,59299.0,59298.0,0.36305302]
[1723886245602,0.13854625,59299.0,59298.0,0.00225302]
[1723886245801,0.13854625,59299.0,59298.0,0.36305302]
[1723886246098,0.13854625,59299.0,59298.0,0.00225302]
[1723886246496,0.13854625,59299.0,59298.0,0.36305302]
[1723886247698,1.24491103,59299.0,59298.0,0.00225302]
[1723886247906,1.19446625,59299.0,59298.0,0.00225302]
[1723886249303,0.79446625,59299.0,59298.0,0.00225302]
[1723886251004,0.28854625,59299.0,59298.0,0.00225302]
[1723886251197,0.79446625,59299.0,59298.0,0.00225302]
[1723886251397,0.28854625,59299.0,59298.0,0.00225302]
[1723886251598,0.79446625,59299.0,59298.0,0.00225302]
[1723886252911,0.28854625,59299.0,59298.0,0.00225302]
[1723886253295,0.79446625,59299.0,59298.0,0.00225302]
[1723886254212,0.28854625,59299.0,59298.0,0.00225302]
[1723886254894,0.19524625,59299.0,59298.0,0.00225302]
[1723886255208,0.28854625,59299.0,59298.0,0.00225302]
[1723886256811,0.33898515,59299.0,59298.0,0.00225302]
[1723886257307,0.35177225,59299.0,59298.0,0.00225302]
[1723886262206,0.41904471,59299.0,59298.0,0.00225302]
[1723886264212,0.35177225,59299.0,59298.0,0.00225302]
[1723886268217,0.35177225,59299.0,59298.0,0.05249388]
[1723886269199,0.43605905,59299.0,59298.0,0.05249388]
[1723886269607,0.43605905,59299.0,59298.0,0.00225302]
[1723886270007,0.94197905,59299.0,59298.0,0.00225302]
[1723886272814,0.85769225,59299.0,59298.0,0.00225302]
[1723886273115,0.88502514,59299.0,59298.0,0.00225302]
[1723886273701,0.37910514,59299.0,59298.0,0.00225302]
[1723886274014,0.88502514,59299.0,59298.0,0.00225302]
[1723886274411,0.37910514,59299.0,59298.0,0.00225302]
[1723886275116,0.37910514,59299.0,59298.0,0.05249388]
[1723886276421,0.37910513,59299.0,59298.0,0.05249388]
[1723886278414,0.37910513,59299.0,59298.0,0.00225302]
[1723886278625,0.21262811,59299.0,59298.0,0.00225302]
[1723886278820,0.21262811,59299.0,59298.0,0.09965302]
[1723886279013,0.1283,59299.0,59298.0,0.21337156]
[1723886279620,0.1283,59299.0,59298.0,0.1835646]
[1723886279824,0.1283,59299.0,59298.0,0.14645302]
[1723886280017,0.1283,59299.0,59298.0,0.1835644]
[1723886280316,0.1283,59299.0,59298.0,0.18356449]
[1723886281113,0.035,59299.0,59298.0,0.18356449]
[1723886281420,0.035,59299.0,59298.0,0.25086046]
[1723886281421,0.1283,59299.0,59298.0,0.25086046]
[1723886282325,0.1283,59299.0,59298.0,0.25084796]